[Event "Early Titled Tuesday Blitz | February 8 2022"]
[White "Rakhmanov, Aleksandr"]
[Black "Grischuk, Alexander"]
[WhiteFideId "4173708"]
[BlackFideId "4126025"]
[WhiteElo "2500"]
[BlackElo "2762"]
[Result "1/2-1/2"]
[Round "03"]
[TimeControl "180+1"]
[Date "2022.02.08"]
[WhiteClock "0:00:06"]
[BlackClock "0:00:03"]

1. c4 {[%clk 0:03:00]}  e5 {[%clk 0:02:56]} 2. Nf3 {[%clk 0:03:00]}  e4 {[%clk 0:02:51]} 3. Nd4 {[%clk 0:02:59]}  Nc6 {[%clk 0:02:51]} 4. e3 {[%clk 0:03:00]}  Ne5 {[%clk 0:02:49]} 5. Nc3 {[%clk 0:02:59]}  Nf6 {[%clk 0:02:47]} 6. f4 {[%clk 0:02:58]}  Nd3+ {[%clk 0:02:41]} 7. Bxd3 {[%clk 0:02:57]}  exd3 {[%clk 0:02:42]} 8. Qf3 {[%clk 0:02:46]}  Bc5 {[%clk 0:02:30]} 9. Nb3 {[%clk 0:02:37]}  Bb4 {[%clk 0:02:21]} 10. Nd5 {[%clk 0:02:35]}  a5 {[%clk 0:02:19]} 11. Nxf6+ {[%clk 0:02:13]}  Qxf6 {[%clk 0:02:18]} 12. Qe4+ {[%clk 0:02:13]}  Be7 {[%clk 0:01:39]} 13. Nd4 {[%clk 0:01:45]}  O-O {[%clk 0:01:37]} 14. Qxd3 {[%clk 0:01:33]}  b6 {[%clk 0:01:36]} 15. O-O {[%clk 0:01:28]}  Bb7 {[%clk 0:01:35]} 16. Nb5 {[%clk 0:01:29]}  Qc6 {[%clk 0:01:05]} 17. Rf2 {[%clk 0:01:17]}  Bh4 {[%clk 0:01:03]} 18. Re2 {[%clk 0:01:17]}  Bf6 {[%clk 0:00:41]} 19. Rb1 {[%clk 0:00:59]}  Qe4 {[%clk 0:00:33]} 20. Qxe4 {[%clk 0:00:34]}  Bxe4 {[%clk 0:00:34]} 21. Ra1 {[%clk 0:00:34]}  Bd3 {[%clk 0:00:32]} 22. Re1 {[%clk 0:00:30]}  c6 {[%clk 0:00:18]} 23. Nc3 {[%clk 0:00:17]}  Bxc4 {[%clk 0:00:17]} 24. b3 {[%clk 0:00:14]}  Bd3 {[%clk 0:00:15]} 25. Bb2 {[%clk 0:00:14]}  Bxc3 {[%clk 0:00:05]} 26. Bxc3 {[%clk 0:00:14]}  c5 {[%clk 0:00:05]} 27. a3 {[%clk 0:00:14]}  d5 {[%clk 0:00:04]} 28. Kf2 {[%clk 0:00:07]}  f6 {[%clk 0:00:03]} 29. g4 {[%clk 0:00:07]}  Rfd8 {[%clk 0:00:03]} 30. Rg1 {[%clk 0:00:06]}  Kf7 {[%clk 0:00:03]} 31. g5 {[%clk 0:00:06]}  b5 {[%clk 0:00:02]} 32. gxf6 {[%clk 0:00:06]}  gxf6 {[%clk 0:00:01]} 33. b4 {[%clk 0:00:05]}  d4 {[%clk 0:00:02]} 34. exd4 {[%clk 0:00:05]}  cxd4 {[%clk 0:00:03]} 35. Bb2 {[%clk 0:00:06]}  axb4 {[%clk 0:00:03]} 36. axb4 {[%clk 0:00:07]}  Rxa1 {[%clk 0:00:02]} 37. Rxa1 {[%clk 0:00:07]}  Ke6 {[%clk 0:00:03]} 38. Ra6+ {[%clk 0:00:07]}  Kf5 {[%clk 0:00:03]} 39. Kf3 {[%clk 0:00:06]}  Be4+ {[%clk 0:00:03]} 40. Kg3 {[%clk 0:00:06]}  Rg8+ {[%clk 0:00:03]} 41. Kf2 {[%clk 0:00:04]}  Rg2+ {[%clk 0:00:03]} 42. Ke1 {[%clk 0:00:05]}  Rg1+ {[%clk 0:00:04]} 43. Kf2 {[%clk 0:00:05]}  Rg2+ {[%clk 0:00:04]} 44. Ke1 {[%clk 0:00:06]}  Rg1+ {[%clk 0:00:02]} 45. Kf2 {[%clk 0:00:06]}  Rg2+ {[%clk 0:00:03]} 1/2-1/2


[Site "https://www.chess.com"]

[Event "Early Titled Tuesday Blitz | February 8 2022"]
[White "Redzisz, Michal"]
[Black "Al Hosani, Omran"]
[WhiteFideId "21816107"]
[BlackFideId "9308733"]
[WhiteElo "1961"]
[BlackElo "2246"]
[Result "1/2-1/2"]
[Round "03"]
[TimeControl "180+1"]
[Date "2022.02.08"]
[WhiteClock "0:00:27"]
[BlackClock "0:00:39"]

1. Nf3 {[%clk 0:02:55]}  Nf6 {[%clk 0:02:59]} 2. b3 {[%clk 0:02:55]}  g6 {[%clk 0:02:59]} 3. Bb2 {[%clk 0:02:56]}  Bg7 {[%clk 0:03:00]} 4. g3 {[%clk 0:02:56]}  O-O {[%clk 0:03:01]} 5. Bg2 {[%clk 0:02:57]}  d5 {[%clk 0:03:02]} 6. O-O {[%clk 0:02:57]}  c5 {[%clk 0:03:02]} 7. d4 {[%clk 0:02:54]}  Ne4 {[%clk 0:03:02]} 8. Nbd2 {[%clk 0:02:45]}  Nc6 {[%clk 0:03:00]} 9. e3 {[%clk 0:02:45]}  Bg4 {[%clk 0:02:59]} 10. h3 {[%clk 0:02:39]}  Nxd2 {[%clk 0:02:58]} 11. Qxd2 {[%clk 0:02:39]}  Bxf3 {[%clk 0:02:58]} 12. Bxf3 {[%clk 0:02:40]}  cxd4 {[%clk 0:02:57]} 13. Bxd4 {[%clk 0:02:36]}  Nxd4 {[%clk 0:02:49]} 14. exd4 {[%clk 0:02:35]}  e6 {[%clk 0:02:49]} 15. Rfd1 {[%clk 0:02:25]}  Rc8 {[%clk 0:02:47]} 16. Rac1 {[%clk 0:02:12]}  b5 {[%clk 0:02:38]} 17. Be2 {[%clk 0:02:11]}  a6 {[%clk 0:02:37]} 18. c4 {[%clk 0:02:12]}  bxc4 {[%clk 0:02:36]} 19. bxc4 {[%clk 0:02:12]}  dxc4 {[%clk 0:02:37]} 20. Rxc4 {[%clk 0:02:12]}  Rxc4 {[%clk 0:02:32]} 21. Bxc4 {[%clk 0:02:13]}  Qd6 {[%clk 0:02:31]} 22. d5 {[%clk 0:02:04]}  exd5 {[%clk 0:02:31]} 23. Qxd5 {[%clk 0:02:01]}  Qb6 {[%clk 0:02:19]} 24. Kg2 {[%clk 0:01:55]}  a5 {[%clk 0:02:15]} 25. Qb5 {[%clk 0:01:53]}  Qxb5 {[%clk 0:01:28]} 26. Bxb5 {[%clk 0:01:54]}  Rb8 {[%clk 0:01:28]} 27. a4 {[%clk 0:01:53]}  Rb7 {[%clk 0:01:14]} 28. Rd8+ {[%clk 0:01:48]}  Bf8 {[%clk 0:01:14]} 29. Ra8 {[%clk 0:01:49]}  Kg7 {[%clk 0:01:08]} 30. Rxa5 {[%clk 0:01:36]}  Rc7 {[%clk 0:01:07]} 31. Ra6 {[%clk 0:01:33]}  Rc2 {[%clk 0:01:06]} 32. Rc6 {[%clk 0:01:10]}  Bc5 {[%clk 0:01:06]} 33. Be2 {[%clk 0:01:10]}  h5 {[%clk 0:00:46]} 34. a5 {[%clk 0:01:05]}  Rxe2 {[%clk 0:00:44]} 35. Rxc5 {[%clk 0:01:05]}  Ra2 {[%clk 0:00:45]} 36. h4 {[%clk 0:01:05]}  Ra3 {[%clk 0:00:45]} 37. Rb5 {[%clk 0:00:59]}  Ra2 {[%clk 0:00:44]} 38. Kf3 {[%clk 0:00:59]}  Ra3+ {[%clk 0:00:43]} 39. Ke4 {[%clk 0:00:48]}  Ra2 {[%clk 0:00:43]} 40. f3 {[%clk 0:00:45]}  Ra3 {[%clk 0:00:43]} 41. Kf4 {[%clk 0:00:36]}  Ra4+ {[%clk 0:00:41]} 42. Ke3 {[%clk 0:00:36]}  Ra3+ {[%clk 0:00:41]} 43. Ke4 {[%clk 0:00:33]}  Ra4+ {[%clk 0:00:41]} 44. Ke5 {[%clk 0:00:32]}  Ra3 {[%clk 0:00:42]} 45. Kf4 {[%clk 0:00:30]}  Ra4+ {[%clk 0:00:39]} 46. Ke3 {[%clk 0:00:26]}  Ra3+ {[%clk 0:00:39]} 47. Kf4 {[%clk 0:00:27]} 1/2-1/2


[Site "https://www.chess.com"]

[Event "Early Titled Tuesday Blitz | February 8 2022"]
[White "Ronka, Erik"]
[Black "Matlakov, Maxim"]
[WhiteFideId "505080"]
[BlackFideId "4168003"]
[WhiteElo "2264"]
[BlackElo "2661"]
[Result "0-1"]
[Round "03"]
[TimeControl "180+1"]
[Date "2022.02.08"]
[WhiteClock "0:01:19"]
[BlackClock "0:01:48"]

1. d4 {[%clk 0:03:00]}  Nf6 {[%clk 0:02:59]} 2. Nf3 {[%clk 0:03:01]}  b6 {[%clk 0:02:59]} 3. g3 {[%clk 0:03:00]}  Bb7 {[%clk 0:02:59]} 4. Bg2 {[%clk 0:03:01]}  g6 {[%clk 0:03:00]} 5. O-O {[%clk 0:03:01]}  Bg7 {[%clk 0:03:00]} 6. c4 {[%clk 0:03:02]}  O-O {[%clk 0:03:00]} 7. Nc3 {[%clk 0:03:02]}  Ne4 {[%clk 0:02:59]} 8. Nxe4 {[%clk 0:02:54]}  Bxe4 {[%clk 0:03:00]} 9. Be3 {[%clk 0:02:54]}  d6 {[%clk 0:02:57]} 10. Qd2 {[%clk 0:02:54]}  c5 {[%clk 0:02:57]} 11. Bh6 {[%clk 0:02:51]}  Nc6 {[%clk 0:02:57]} 12. Bxg7 {[%clk 0:02:46]}  Kxg7 {[%clk 0:02:57]} 13. e3 {[%clk 0:02:43]}  Rc8 {[%clk 0:02:50]} 14. Rac1 {[%clk 0:02:37]}  Qc7 {[%clk 0:02:46]} 15. Ne1 {[%clk 0:02:12]}  Bxg2 {[%clk 0:02:45]} 16. Nxg2 {[%clk 0:02:13]}  Qb7 {[%clk 0:02:43]} 17. Nf4 {[%clk 0:02:08]}  Rfd8 {[%clk 0:02:37]} 18. h4 {[%clk 0:02:00]}  h5 {[%clk 0:02:27]} 19. Kh2 {[%clk 0:01:43]}  e5 {[%clk 0:02:22]} 20. dxc5 {[%clk 0:01:36]}  exf4 {[%clk 0:02:21]} 21. cxd6 {[%clk 0:01:27]}  Ne5 {[%clk 0:02:11]} 22. Qc3 {[%clk 0:01:27]}  f6 {[%clk 0:02:11]} 23. exf4 {[%clk 0:01:23]}  Ng4+ {[%clk 0:01:51]} 24. Kh3 {[%clk 0:01:22]}  Rxd6 {[%clk 0:01:52]} 25. f3 {[%clk 0:01:19]}  Nh6 {[%clk 0:01:50]} 26. Rfe1 {[%clk 0:01:19]}  Qd7+ {[%clk 0:01:48]} 0-1


[Site "https://www.chess.com"]

[Event "Early Titled Tuesday Blitz | February 8 2022"]
[White "Samunenkov, Ihor"]
[Black "Sadhwani, Raunak"]
[WhiteFideId "14187086"]
[BlackFideId "35093487"]
[WhiteElo "2406"]
[BlackElo "2616"]
[Result "0-1"]
[Round "03"]
[TimeControl "180+1"]
[Date "2022.02.08"]
[WhiteClock "0:00:02"]
[BlackClock "0:01:21"]

1. d4 {[%clk 0:02:59]}  Nf6 {[%clk 0:02:56]} 2. c4 {[%clk 0:02:58]}  g6 {[%clk 0:02:53]} 3. Nc3 {[%clk 0:02:58]}  Bg7 {[%clk 0:02:53]} 4. e4 {[%clk 0:02:58]}  d6 {[%clk 0:02:54]} 5. h3 {[%clk 0:02:58]}  O-O {[%clk 0:02:54]} 6. Bg5 {[%clk 0:02:58]}  Nbd7 {[%clk 0:02:46]} 7. Nf3 {[%clk 0:02:49]}  e5 {[%clk 0:02:46]} 8. d5 {[%clk 0:02:38]}  Nc5 {[%clk 0:02:32]} 9. b4 {[%clk 0:02:28]}  Ncd7 {[%clk 0:02:25]} 10. Bd3 {[%clk 0:02:26]}  a5 {[%clk 0:02:22]} 11. a3 {[%clk 0:02:25]}  h6 {[%clk 0:02:20]} 12. Be3 {[%clk 0:02:24]}  Nh5 {[%clk 0:02:21]} 13. g3 {[%clk 0:01:49]}  f5 {[%clk 0:02:21]} 14. exf5 {[%clk 0:01:35]}  e4 {[%clk 0:02:16]} 15. Nxe4 {[%clk 0:01:26]}  Bxa1 {[%clk 0:02:17]} 16. Qxa1 {[%clk 0:01:27]}  gxf5 {[%clk 0:02:14]} 17. Ned2 {[%clk 0:00:55]}  axb4 {[%clk 0:02:12]} 18. Bxh6 {[%clk 0:00:55]}  Rxa3 {[%clk 0:01:56]} 19. Qd4 {[%clk 0:00:50]}  Qf6 {[%clk 0:01:55]} 20. Bxf8 {[%clk 0:00:25]}  Qxd4 {[%clk 0:01:52]} 21. Nxd4 {[%clk 0:00:25]}  Rxd3 {[%clk 0:01:52]} 22. Nxf5 {[%clk 0:00:24]}  Kxf8 {[%clk 0:01:52]} 23. Ke2 {[%clk 0:00:22]}  Nc5 {[%clk 0:01:50]} 24. Ne3 {[%clk 0:00:19]}  Nf6 {[%clk 0:01:39]} 25. Rb1 {[%clk 0:00:17]}  b3 {[%clk 0:01:38]} 26. g4 {[%clk 0:00:15]}  b5 {[%clk 0:01:36]} 27. g5 {[%clk 0:00:03]}  Nh5 {[%clk 0:01:35]} 28. cxb5 {[%clk 0:00:04]}  Nf4+ {[%clk 0:01:35]} 29. Ke1 {[%clk 0:00:04]}  Bxh3 {[%clk 0:01:26]} 30. b6 {[%clk 0:00:02]}  cxb6 {[%clk 0:01:26]} 31. Ndc4 {[%clk 0:00:03]}  Nxd5 {[%clk 0:01:20]} 32. Nxd5 {[%clk 0:00:02]}  Rxd5 {[%clk 0:01:21]} 0-1


[Site "https://www.chess.com"]

[Event "Early Titled Tuesday Blitz | February 8 2022"]
[White "Sarkar, Justin"]
[Black "Pinheiro, Iung Alicio de O."]
[WhiteFideId "2010011"]
[BlackFideId "2104350"]
[WhiteElo "2038"]
[BlackElo "2604"]
[Result "0-1"]
[Round "03"]
[TimeControl "180+1"]
[Date "2022.02.08"]
[WhiteClock "0:00:01"]
[BlackClock "0:00:48"]

1. e4 {[%clk 0:02:54]}  c5 {[%clk 0:02:55]} 2. Nf3 {[%clk 0:02:51]}  d6 {[%clk 0:02:54]} 3. d4 {[%clk 0:02:50]}  cxd4 {[%clk 0:02:54]} 4. Nxd4 {[%clk 0:02:51]}  Nf6 {[%clk 0:02:54]} 5. Nc3 {[%clk 0:02:51]}  a6 {[%clk 0:02:54]} 6. Qd3 {[%clk 0:02:38]}  e5 {[%clk 0:02:47]} 7. Nf5 {[%clk 0:02:33]}  d5 {[%clk 0:02:35]} 8. Bg5 {[%clk 0:02:24]}  d4 {[%clk 0:02:12]} 9. Bxf6 {[%clk 0:02:20]}  gxf6 {[%clk 0:02:09]} 10. Nd1 {[%clk 0:01:51]}  Nc6 {[%clk 0:02:04]} 11. Be2 {[%clk 0:01:42]}  Be6 {[%clk 0:01:58]} 12. O-O {[%clk 0:01:32]}  Qb6 {[%clk 0:01:42]} 13. a3 {[%clk 0:01:11]}  O-O-O {[%clk 0:01:40]} 14. b4 {[%clk 0:01:08]}  Rg8 {[%clk 0:01:33]} 15. Nb2 {[%clk 0:01:00]}  Re8 {[%clk 0:01:11]} 16. Rfb1 {[%clk 0:00:23]}  Bxf5 {[%clk 0:01:09]} 17. exf5 {[%clk 0:00:22]}  e4 {[%clk 0:01:10]} 18. Qb3 {[%clk 0:00:14]}  d3 {[%clk 0:00:57]} 19. cxd3 {[%clk 0:00:14]}  e3 {[%clk 0:00:51]} 20. f4 {[%clk 0:00:02]}  Nd4 {[%clk 0:00:48]} 21. Qc3+ {[%clk 0:00:01]}  Kb8 {[%clk 0:00:48]} 0-1


[Site "https://www.chess.com"]

[Event "Early Titled Tuesday Blitz | February 8 2022"]
[White "Schut, Han"]
[Black "Le Ruyet, Leopold"]
[WhiteFideId "1005561"]
[BlackFideId "645923"]
[WhiteElo "2057"]
[BlackElo "2276"]
[Result "0-1"]
[Round "03"]
[TimeControl "180+1"]
[Date "2022.02.08"]
[WhiteClock "0:00:01"]
[BlackClock "0:00:09"]

1. e4 {[%clk 0:03:00]}  e6 {[%clk 0:03:00]} 2. d4 {[%clk 0:03:00]}  d5 {[%clk 0:03:00]} 3. e5 {[%clk 0:03:01]}  c5 {[%clk 0:03:00]} 4. c3 {[%clk 0:03:02]}  Nc6 {[%clk 0:03:00]} 5. Nf3 {[%clk 0:03:02]}  Bd7 {[%clk 0:03:00]} 6. Be2 {[%clk 0:03:01]}  Qc7 {[%clk 0:03:00]} 7. a3 {[%clk 0:02:54]}  f6 {[%clk 0:03:00]} 8. b4 {[%clk 0:02:39]}  cxd4 {[%clk 0:02:49]} 9. cxd4 {[%clk 0:02:33]}  fxe5 {[%clk 0:02:47]} 10. dxe5 {[%clk 0:02:20]}  Nxe5 {[%clk 0:02:47]} 11. Bb2 {[%clk 0:02:18]}  Bd6 {[%clk 0:02:39]} 12. Nc3 {[%clk 0:02:08]}  Nf6 {[%clk 0:02:16]} 13. Rc1 {[%clk 0:02:00]}  Qb8 {[%clk 0:02:09]} 14. Na4 {[%clk 0:01:15]}  O-O {[%clk 0:02:00]} 15. Nc5 {[%clk 0:01:06]}  b6 {[%clk 0:01:28]} 16. Nxd7 {[%clk 0:00:55]}  Nxf3+ {[%clk 0:01:10]} 17. Bxf3 {[%clk 0:00:56]}  Nxd7 {[%clk 0:01:10]} 18. Bg4 {[%clk 0:00:32]}  Qe8 {[%clk 0:01:03]} 19. Rc6 {[%clk 0:00:22]}  Qe7 {[%clk 0:00:55]} 20. O-O {[%clk 0:00:22]}  Nf6 {[%clk 0:00:48]} 21. Re1 {[%clk 0:00:14]}  e5 {[%clk 0:00:40]} 22. f4 {[%clk 0:00:11]}  Nxg4 {[%clk 0:00:32]} 23. Qxg4 {[%clk 0:00:12]}  Rxf4 {[%clk 0:00:19]} 24. Qxf4 {[%clk 0:00:08]}  exf4 {[%clk 0:00:20]} 25. Rxe7 {[%clk 0:00:09]}  Bxe7 {[%clk 0:00:20]} 26. Rc7 {[%clk 0:00:08]}  Bh4 {[%clk 0:00:17]} 27. Rxg7+ {[%clk 0:00:06]}  Kf8 {[%clk 0:00:17]} 28. Rg4 {[%clk 0:00:05]}  Be7 {[%clk 0:00:17]} 29. Rxf4+ {[%clk 0:00:06]}  Ke8 {[%clk 0:00:16]} 30. Rf5 {[%clk 0:00:03]}  Rd8 {[%clk 0:00:16]} 31. Bd4 {[%clk 0:00:04]}  Bf8 {[%clk 0:00:13]} 32. g4 {[%clk 0:00:03]}  Bh6 {[%clk 0:00:13]} 33. Kf2 {[%clk 0:00:02]}  Bc1 {[%clk 0:00:12]} 34. a4 {[%clk 0:00:01]}  Ba3 {[%clk 0:00:12]} 35. b5 {[%clk 0:00:01]}  Bc5 {[%clk 0:00:13]} 36. Ke3 {[%clk 0:00:02]}  Ke7 {[%clk 0:00:12]} 37. g5 {[%clk 0:00:01]}  Ke6 {[%clk 0:00:12]} 38. Rf6+ {[%clk 0:00:02]}  Ke7 {[%clk 0:00:13]} 39. h4 {[%clk 0:00:02]}  Re8 {[%clk 0:00:11]} 40. Kd3 {[%clk 0:00:01]}  Kd7 {[%clk 0:00:11]} 41. Rh6 {[%clk 0:00:01]}  Re7 {[%clk 0:00:10]} 42. h5 {[%clk 0:00:01]}  Re4 {[%clk 0:00:09]} 0-1


[Site "https://www.chess.com"]

[Event "Early Titled Tuesday Blitz | February 8 2022"]
[White "Selbes, Tarik"]
[Black "Vignesh, N R"]
[WhiteFideId "6302513"]
[BlackFideId "25012215"]
[WhiteElo "2290"]
[BlackElo "2395"]
[Result "0-1"]
[Round "03"]
[TimeControl "180+1"]
[Date "2022.02.08"]
[WhiteClock "0:00:34"]
[BlackClock "0:01:23"]

1. Nf3 {[%clk 0:03:00]}  d5 {[%clk 0:02:58]} 2. g3 {[%clk 0:03:00]}  c6 {[%clk 0:02:58]} 3. Bg2 {[%clk 0:03:01]}  Bg4 {[%clk 0:02:59]} 4. O-O {[%clk 0:03:02]}  Nd7 {[%clk 0:02:58]} 5. d3 {[%clk 0:02:54]}  e6 {[%clk 0:02:58]} 6. Nbd2 {[%clk 0:02:53]}  Bd6 {[%clk 0:02:58]} 7. e4 {[%clk 0:02:52]}  Ne7 {[%clk 0:02:59]} 8. Qe1 {[%clk 0:02:49]}  O-O {[%clk 0:02:58]} 9. h3 {[%clk 0:02:47]}  Bh5 {[%clk 0:02:57]} 10. a4 {[%clk 0:02:35]}  a5 {[%clk 0:02:55]} 11. Nb3 {[%clk 0:02:27]}  e5 {[%clk 0:02:52]} 12. Bd2 {[%clk 0:02:25]}  b6 {[%clk 0:02:50]} 13. Nh4 {[%clk 0:02:11]}  Qc7 {[%clk 0:02:46]} 14. Rc1 {[%clk 0:02:05]}  f6 {[%clk 0:02:44]} 15. exd5 {[%clk 0:01:57]}  cxd5 {[%clk 0:02:43]} 16. c4 {[%clk 0:01:58]}  Rac8 {[%clk 0:02:34]} 17. cxd5 {[%clk 0:01:52]}  Qb7 {[%clk 0:02:33]} 18. d4 {[%clk 0:01:46]}  Bf7 {[%clk 0:02:30]} 19. dxe5 {[%clk 0:01:44]}  Nxe5 {[%clk 0:02:31]} 20. Qe2 {[%clk 0:01:28]}  Bxd5 {[%clk 0:02:28]} 21. f4 {[%clk 0:01:27]}  Nf7 {[%clk 0:02:15]} 22. Nd4 {[%clk 0:01:19]}  Bc5 {[%clk 0:02:08]} 23. Rxc5 {[%clk 0:01:07]}  bxc5 {[%clk 0:02:08]} 24. Ne6 {[%clk 0:01:06]}  Rfe8 {[%clk 0:02:06]} 25. f5 {[%clk 0:00:56]}  Bxg2 {[%clk 0:01:59]} 26. Nxg2 {[%clk 0:00:56]}  Qxb2 {[%clk 0:01:49]} 27. Qg4 {[%clk 0:00:51]}  Nxf5 {[%clk 0:01:45]} 28. Rxf5 {[%clk 0:00:48]}  Rxe6 {[%clk 0:01:45]} 29. Rf2 {[%clk 0:00:40]}  Qb1+ {[%clk 0:01:39]} 30. Kh2 {[%clk 0:00:40]}  Qe4 {[%clk 0:01:37]} 31. Nf4 {[%clk 0:00:39]}  Ree8 {[%clk 0:01:31]} 32. Re2 {[%clk 0:00:37]}  Ne5 {[%clk 0:01:29]} 33. Qxc8 {[%clk 0:00:34]}  Qxe2+ {[%clk 0:01:26]} 34. Nxe2 {[%clk 0:00:35]}  Rxc8 {[%clk 0:01:25]} 35. Bxa5 {[%clk 0:00:34]}  Ra8 {[%clk 0:01:23]} 0-1


[Site "https://www.chess.com"]

[Event "Early Titled Tuesday Blitz | February 8 2022"]
[White "Sharapov, Evgeny"]
[Black "Ozen, Deniz"]
[WhiteFideId "14103133"]
[BlackFideId "6349196"]
[WhiteElo "2367"]
[BlackElo "2326"]
[Result "0-1"]
[Round "03"]
[TimeControl "180+1"]
[Date "2022.02.08"]
[WhiteClock "0:00:07"]
[BlackClock "0:00:11"]

1. e4 {[%clk 0:02:59]}  e5 {[%clk 0:02:59]} 2. Nf3 {[%clk 0:02:59]}  Nf6 {[%clk 0:03:00]} 3. Nc3 {[%clk 0:02:59]}  Nc6 {[%clk 0:02:58]} 4. Bb5 {[%clk 0:02:58]}  Nd4 {[%clk 0:02:58]} 5. Bc4 {[%clk 0:02:58]}  c6 {[%clk 0:02:58]} 6. O-O {[%clk 0:02:56]}  d5 {[%clk 0:02:58]} 7. exd5 {[%clk 0:02:55]}  cxd5 {[%clk 0:02:59]} 8. Nxd4 {[%clk 0:02:50]}  dxc4 {[%clk 0:02:59]} 9. Nf3 {[%clk 0:02:47]}  Bd6 {[%clk 0:02:59]} 10. Re1 {[%clk 0:02:46]}  O-O {[%clk 0:02:51]} 11. d3 {[%clk 0:02:40]}  cxd3 {[%clk 0:02:51]} 12. cxd3 {[%clk 0:02:40]}  Bg4 {[%clk 0:02:50]} 13. h3 {[%clk 0:02:39]}  Bh5 {[%clk 0:02:50]} 14. Bg5 {[%clk 0:02:38]}  h6 {[%clk 0:02:42]} 15. Bh4 {[%clk 0:02:33]}  g5 {[%clk 0:02:39]} 16. Bg3 {[%clk 0:02:33]}  Re8 {[%clk 0:02:38]} 17. Ne4 {[%clk 0:02:23]}  Bb4 {[%clk 0:02:30]} 18. Nxf6+ {[%clk 0:02:15]}  Qxf6 {[%clk 0:02:30]} 19. Rxe5 {[%clk 0:02:13]}  Bxf3 {[%clk 0:02:20]} 20. Rxe8+ {[%clk 0:02:11]}  Rxe8 {[%clk 0:02:21]} 21. Qxf3 {[%clk 0:02:11]}  Qxf3 {[%clk 0:02:18]} 22. gxf3 {[%clk 0:02:11]}  Re2 {[%clk 0:02:19]} 23. Rb1 {[%clk 0:02:02]}  Rd2 {[%clk 0:02:18]} 24. Be5 {[%clk 0:01:41]}  Bc5 {[%clk 0:02:08]} 25. d4 {[%clk 0:01:39]}  Bxd4 {[%clk 0:02:08]} 26. Bxd4 {[%clk 0:01:39]}  Rxd4 {[%clk 0:02:09]} 27. b4 {[%clk 0:01:24]}  Rd2 {[%clk 0:02:03]} 28. a4 {[%clk 0:01:24]}  Ra2 {[%clk 0:01:46]} 29. a5 {[%clk 0:01:23]}  Ra4 {[%clk 0:01:47]} 30. Kf1 {[%clk 0:01:20]}  Kg7 {[%clk 0:01:48]} 31. Ke2 {[%clk 0:01:20]}  Kg6 {[%clk 0:01:48]} 32. Rb3 {[%clk 0:01:13]}  Kh5 {[%clk 0:01:44]} 33. f4 {[%clk 0:01:13]}  gxf4 {[%clk 0:01:41]} 34. Kf3 {[%clk 0:01:13]}  Kg5 {[%clk 0:01:40]} 35. h4+ {[%clk 0:01:05]}  Kf5 {[%clk 0:01:39]} 36. Ke2 {[%clk 0:00:58]}  Kg4 {[%clk 0:01:36]} 37. Kd3 {[%clk 0:00:58]}  Ra2 {[%clk 0:01:31]} 38. Rc3 {[%clk 0:00:55]}  Rb2 {[%clk 0:01:16]} 39. Rc4 {[%clk 0:00:55]}  Kf3 {[%clk 0:01:11]} 40. h5 {[%clk 0:00:53]}  f5 {[%clk 0:01:05]} 41. Kc3 {[%clk 0:00:52]}  Rb1 {[%clk 0:00:57]} 42. Kc2 {[%clk 0:00:52]}  Rf1 {[%clk 0:00:55]} 43. Rc7 {[%clk 0:00:51]}  Rxf2+ {[%clk 0:00:56]} 44. Kc3 {[%clk 0:00:50]}  Rf1 {[%clk 0:00:45]} 45. Rxb7 {[%clk 0:00:50]}  a6 {[%clk 0:00:44]} 46. Rb6 {[%clk 0:00:49]}  Kg4 {[%clk 0:00:41]} 47. Rxa6 {[%clk 0:00:40]}  f3 {[%clk 0:00:41]} 48. Kd2 {[%clk 0:00:40]}  Rb1 {[%clk 0:00:38]} 49. Ke3 {[%clk 0:00:33]}  f4+ {[%clk 0:00:26]} 50. Kf2 {[%clk 0:00:32]}  Rb2+ {[%clk 0:00:26]} 51. Kf1 {[%clk 0:00:32]}  f2 {[%clk 0:00:27]} 52. Rc6 {[%clk 0:00:22]}  Kg3 {[%clk 0:00:27]} 53. Rc1 {[%clk 0:00:19]}  Rxb4 {[%clk 0:00:26]} 54. Ra1 {[%clk 0:00:17]}  Rb7 {[%clk 0:00:15]} 55. a6 {[%clk 0:00:17]}  Ra7 {[%clk 0:00:15]} 56. Ra3+ {[%clk 0:00:16]}  f3 {[%clk 0:00:15]} 57. Ra4 {[%clk 0:00:15]}  Re7 {[%clk 0:00:11]} 58. Ra1 {[%clk 0:00:14]}  Re4 {[%clk 0:00:11]} 59. a7 {[%clk 0:00:08]}  Rh4 {[%clk 0:00:11]} 60. a8=Q {[%clk 0:00:07]}  Rh1# {[%clk 0:00:11]} 0-1


[Site "https://www.chess.com"]

[Event "Early Titled Tuesday Blitz | February 8 2022"]
[White "Shuvalov, Evgenij"]
[Black "Moiseenko, Alexander"]
[WhiteFideId "4187237"]
[BlackFideId "14102560"]
[WhiteElo "2119"]
[BlackElo "2577"]
[Result "0-1"]
[Round "03"]
[TimeControl "180+1"]
[Date "2022.02.08"]
[WhiteClock "0:00:06"]
[BlackClock "0:00:33"]

1. Nf3 {[%clk 0:03:00]}  c5 {[%clk 0:02:59]} 2. c4 {[%clk 0:03:00]}  Nc6 {[%clk 0:02:58]} 3. d4 {[%clk 0:03:00]}  cxd4 {[%clk 0:02:56]} 4. Nxd4 {[%clk 0:03:01]}  e6 {[%clk 0:02:56]} 5. Nc3 {[%clk 0:02:59]}  Nf6 {[%clk 0:02:55]} 6. g3 {[%clk 0:02:57]}  Bc5 {[%clk 0:02:44]} 7. Nb3 {[%clk 0:02:56]}  Bb4 {[%clk 0:02:44]} 8. Bg2 {[%clk 0:02:55]}  O-O {[%clk 0:02:43]} 9. O-O {[%clk 0:02:55]}  d6 {[%clk 0:02:37]} 10. Qc2 {[%clk 0:02:40]}  Bxc3 {[%clk 0:02:27]} 11. Qxc3 {[%clk 0:02:40]}  e5 {[%clk 0:02:27]} 12. Rd1 {[%clk 0:02:34]}  Qe7 {[%clk 0:02:21]} 13. Bg5 {[%clk 0:02:12]}  h6 {[%clk 0:02:18]} 14. Bxf6 {[%clk 0:02:12]}  Qxf6 {[%clk 0:02:19]} 15. Nd2 {[%clk 0:02:12]}  Nd4 {[%clk 0:02:06]} 16. Re1 {[%clk 0:01:55]}  Bg4 {[%clk 0:02:05]} 17. f3 {[%clk 0:01:37]}  Bf5 {[%clk 0:02:01]} 18. e4 {[%clk 0:01:33]}  Be6 {[%clk 0:01:59]} 19. Qd3 {[%clk 0:01:24]}  Rac8 {[%clk 0:01:56]} 20. Rac1 {[%clk 0:01:24]}  Qe7 {[%clk 0:01:16]} 21. Nb3 {[%clk 0:01:17]}  Nc6 {[%clk 0:01:16]} 22. Red1 {[%clk 0:01:14]}  Rfd8 {[%clk 0:01:17]} 23. Qe3 {[%clk 0:01:05]}  Qc7 {[%clk 0:01:12]} 24. Bf1 {[%clk 0:01:03]}  Qb6 {[%clk 0:01:08]} 25. Kf2 {[%clk 0:00:32]}  Kf8 {[%clk 0:00:59]} 26. Rd2 {[%clk 0:00:13]}  Ke7 {[%clk 0:00:56]} 27. c5 {[%clk 0:00:10]}  dxc5 {[%clk 0:00:54]} 28. Nxc5 {[%clk 0:00:10]}  Rxd2+ {[%clk 0:00:46]} 29. Qxd2 {[%clk 0:00:11]}  Nb4 {[%clk 0:00:37]} 30. Qe3 {[%clk 0:00:08]}  Nxa2 {[%clk 0:00:35]} 31. Ra1 {[%clk 0:00:07]}  Qxc5 {[%clk 0:00:32]} 32. Qxc5+ {[%clk 0:00:06]}  Rxc5 {[%clk 0:00:33]} 0-1


[Site "https://www.chess.com"]